[Event "Baku Open 2024"]
[Site "Baku"]
[Date "2024.07.03"]
[Round "5.24"]
[White "Iskandarov, Misratdin"]
[Black "Md Imran"]
[Result "0-1"]
[ECO "C01"]
[WhiteElo "2524"]
[BlackElo "2180"]
[Annotator "TA"]
[PlyCount "78"]
[EventDate "2024.06.29"]
[EventType "swiss"]
[EventCountry "AZE"]
[SourceTitle "playchess.com"]
[Source "ChessBase"]
[SourceQuality "1"]
[TimeControl "5400+30"]

{[%evp 13,78,-8,-2,0,0,-4,0,0,0,-25,-30,-27,-25,-28,-29,-23,-14,-36,-26,-39,-29,-37,-33,-39,-27,-114,-33,-147,-150,-181,-108,-147,-128,-122,-69,-81,-22,-80,-86,-107,-75,-66,-67,-84,-71,-80,-43,-103,-61,-68,-55,-54,17,-119,-114,-1222,-1213,-1262,-1227,-1342,-1193,-2267,-1821,-29978,-29979,-29984,-29985]} 1. e4 {[%emt 0:00:46]} e6 {[%emt 0:00:02]} 2. d4 {[%emt 0:00:13]} d5 {[%emt 0:00:04]} 3. Nc3 {[%emt 0:00:55]} Bb4 {[%emt 0:00:58]} 4. exd5 {[%emt 0:00:31]} exd5 {[%emt 0:00:06]} 5. Bd3 {[%emt 0:00:13]} Nf6 {[%emt 0:02:03]} 6. Nf3 {[%emt 0:04:51]} O-O {[%emt 0:00:33]} 7. O-O {[%emt 0:00:06]} Bg4 {[%emt 0:12:59][%cal Bc8g4,Bg4h5,Bh5g6][%mdl 32]} 8. h3 {[%emt 0:01:28]} Bh5 {[%emt 0:00:17]} 9. Bg5 {[%emt 0:00:21]} c6 {[%emt 0:06:45]} 10. g4 {[%emt 0:13:39] The position is equal.} Bg6 {[%emt 0:00:21]} 11. Ne2 {[%emt 0:02:37]} Nbd7 {[%emt 0:02:29]} 12. Ne5 {[%emt 0:06:39]} Qc7 {[%emt 0:12:08]} 13. f4 {[%emt 0:04:25]} Bxd3 {[%emt 0:04:16]} 14. cxd3 {[%emt 0:00:07]} Ne8 {[%emt 0:00:23]} 15. Bh4 {[%emt 0:02:22]} f6 {[%emt 0:01:29]} 16. Nf3 {[%emt 0:00:15]} Bd6 {[%emt 0:00:20][%cal Of8f7]} 17. f5 {[%emt 0:12:20]} g6 {[%emt 0:03:05]} 18. Qd2 {[%emt 0:07:07]} gxf5 {[%emt 0:06:40]} 19. g5 {[%emt 0:01:11]} (19. gxf5 $11 {remains equal.} Ng7 20. Ne1) 19... f4 {[%emt 0:06:55]} (19... Ng7 $17 {Threatens to win with ...f4.} 20. gxf6 Nxf6) 20. Kh1 {[%emt 0:05:53]} (20. gxf6 $15 Ndxf6 21. Ne5) 20... Ng7 $17 {[%emt 0:02:32]} 21. Rg1 {[%emt 0:06:58]} f5 {[%emt 0:03:36]} (21... Rae8 $19 {...Re3 is the strong threat.} 22. Rg2 Nf5) 22. Nc3 {[%emt 0:04:32]} Rae8 {[%emt 0:00:35]} 23. Rae1 {[%emt 0:00:10]} b5 {[%emt 0:03:15]} (23... Re3 $17 24. Rxe3 fxe3 25. Qxe3 Re8) 24. Bf2 {[%emt 0:02:05]} Nh5 {[%emt 0:01:52]} (24... Rxe1 $17 25. Rxe1 Qb8) 25. Rxe8 {[%emt 0:00:36]} (25. g6 $1 $11) 25... Rxe8 {[%emt 0:00:04]} 26. Re1 {[%emt 0:00:07]} Qd8 {[%emt 0:01:04]} 27. Kg2 {[%emt 0:06:42]} Nf8 {[%emt 0:02:04]} 28. h4 {[%emt 0:00:34]} Ng6 {[%emt 0:01:10]} 29. Ne2 {[%emt 0:02:19]} Qd7 {[%emt 0:01:52] Black is more active.} 30. Qc2 {[%emt 0:01:49]} (30. Nc1 $15) 30... h6 {[%emt 0:02:00]} 31. Rc1 {[%emt 0:01:19]} hxg5 {[%emt 0:00:14]} 32. hxg5 {[%emt 0:00:06] [#]} Ng3 {[%emt 0:01:19]} 33. Nxg3 {[%emt 0:06:21]} (33. Qxc6 $11 Qxc6 34. Rxc6 Rxe2 35. Rxd6) 33... fxg3 {[%emt 0:00:10]} 34. Bxg3 {[%emt 0:01:31][%mdl 8192] Loses the game.} (34. Qxc6 $17 Nf4+ 35. Kxg3 Nxd3+ 36. Kg2) 34... Bxg3 $19 {[%emt 0:06:18]} 35. Kxg3 {[%emt 0:01:06]} f4+ {[%emt 0:02:48]} 36. Kh2 {[%emt 0:00:41] [#]} Nh4 $1 {[%emt 0:03:31][%mdl 512]} 37. Qf2 {[%emt 0:03:13] [#]} (37. Nxh4 Qg4) 37... Qg4 $1 {[%emt 0:01:22]} ({Stronger than} 37... Nxf3+ 38. Qxf3 Qh7+ 39. Kg2 $11) 38. Ng1 {[%emt 0:01:32]} Re3 {[%emt 0:01:33]} ({Less strong is} 38... Qxg5 39. Nh3 Qh6 (39... Qg4 $2 40. Rg1 $18) 40. Rf1 $19) 39. Rxc6 {[%emt 0:01:31]} Rg3 {[%emt 0:01:25] Weighted Error Value: White=0.67/Black=0.18 (very precise) .  Loses game:     	White=1     	---        Mistake:       	White=5     	Black=5      Inaccurate:     	White=1     	Black=2      OK:         	White=8     	Black=11     Best:        	---       	Black=1} 0-1

[Event "Baku Open 2024"]
[Site "Baku"]
[Date "2024.07.03"]
[Round "5.25"]
[White "Tsaruk, Maksim"]
[Black "Wagh Suyog"]
[Result "1-0"]
[ECO "B13"]
[WhiteElo "2480"]
[BlackElo "2230"]
[Annotator "TA"]
[PlyCount "177"]
[EventDate "2024.06.29"]
[EventType "swiss"]
[EventCountry "AZE"]
[SourceTitle "playchess.com"]
[Source "ChessBase"]
[SourceQuality "1"]
[TimeControl "5400+30"]

{[%evp 96,177,-124,-128,-42,-41,-36,-36,-12,-12,0,-12,-12,-12,-12,-12,-12,-12,-12,-12,-12,-12,-12,-12,0,0,0,0,0,0,0,0,0,0,0,0,0,0,0,0,0,0,0,0,0,0,0,-8,-8,-8,0,0,0,0,0,0,0,0,0,0,29980,-80,-80,-80,-80,-5260,-80,-80,-80,-8,0,-80,-80,-29978,-29979,-29979,-29980,-29980,-29981,-29981,-29982,-29985,0,-29981]} 1. e4 {[%emt 0:00:04]} c6 {[%emt 0:02:37]} 2. d4 {[%emt 0:00:14]} d5 {[%emt 0:00:03]} 3. exd5 {[%emt 0:00:50]} cxd5 {[%emt 0:00:06]} 4. Bd3 {[%emt 0:00:06]} Nf6 {[%emt 0:02:23]} 5. c3 {[%emt 0:00:45]} Bg4 {[%emt 0:04:13]} 6. Ne2 {[%emt 0:02:32] B13: Caro-Kann: Exchange Variation and Panov-Botvinnik Attack.} e6 {[%emt 0:07:43]} 7. h3 {[%emt 0:05:45]} Bxe2 {[%emt 0:02:24]} 8. Qxe2 {[%emt 0:00:44]} Bd6 {[%emt 0:00:07]} 9. O-O {[%emt 0:00:58]} Qc7 {[%emt 0:00:27]} 10. Be3 $146 {[%emt 0:08:15]} ({Predecessor:} 10. Nd2 O-O 11. Nf3 Nc6 12. Bg5 Nd7 13. Rac1 Rfe8 14. Rfe1 a6 15. Bb1 f6 16. Bd2 {½-½ Heinl,T (2215)-Reuss,A (2352) Wuerttemberg-chA 2006 (5)}) 10... Nc6 {[%emt 0:02:06]} 11. Nd2 {[%emt 0:00:06]} O-O {[%emt 0:12:16]} 12. Bg5 {[%emt 0:27:42]} Nd7 {[%emt 0:13:42]} 13. Qh5 {[%emt 0:03:00]} g6 {[%emt 0:08:00]} 14. Qh4 {[%emt 0:01:06]} Rab8 {[%emt 0:03:41]} 15. Rfe1 {[%emt 0:08:56]} b5 {[%emt 0:02:30]} 16. a3 {[%emt 0:03:44]} Rfe8 {[%emt 0:10:05]} 17. Rad1 {[%emt 0:04:08]} e5 {[%emt 0:07:42]} 18. dxe5 {[%emt 0:00:59]} Ndxe5 {[%emt 0:01:33]} 19. Bf1 {[%emt 0:13:02]} Nc4 {[%emt 0:06:29]} 20. Nf3 {[%emt 0:00:13]} N6e5 {[%emt 0:02:47]} 21. Nd4 {[%emt 0:03:46]} a6 {[%emt 0:00:45]} 22. Re2 {[%emt 0:00:07]} Nd7 {[%emt 0:02:05]} 23. Rde1 {[%emt 0:05:32]} Rxe2 {[%emt 0:00:06]} 24. Rxe2 {[%emt 0:00:02]} Nc5 {[%emt 0:00:07]} 25. g3 {[%emt 0:00:20]} Qd7 {[%emt 0:02:26]} 26. Bg2 {[%emt 0:00:34]} Re8 {[%emt 0:03:22]} 27. Bxd5 {[%emt 0:01:56]} Rxe2 {[%emt 0:00:24]} 28. Nxe2 {[%emt 0:00:03]} Nxb2 {[%emt 0:00:41]} 29. Bf6 {[%emt 0:03:55]} Nbd3 {[%emt 0:03:08]} 30. Nd4 {[%emt 0:02:35]} Be5 {[%emt 0:00:46]} 31. Nc6 {[%emt 0:00:08]} Bd6 {[%emt 0:00:34]} 32. Bd4 {[%emt 0:03:43]} Ne6 {[%emt 0:00:19]} 33. Qg4 {[%emt 0:00:37]} Bxa3 {[%emt 0:00:50]} 34. c4 {[%emt 0:00:22]} Bf8 {[%emt 0:01:03]} 35. Bf6 {[%emt 0:00:37]} Nb4 {[%emt 0:00:00]} 36. Nxb4 {[%emt 0:00:32]} Bxb4 {[%emt 0:00:00]} 37. h4 {[%emt 0:00:30]} Bf8 {[%emt 0:00:31]} 38. h5 {[%emt 0:00:06]} Bg7 {[%emt 0:00:45]} 39. Qh4 {[%emt 0:00:04]} bxc4 {[%emt 0:00:22]} 40. Bxg7 {[%emt 0:00:20]} Qxd5 {[%emt 0:00:47]} 41. Bf6 {[%emt 0:01:02]} Qd1+ {[%emt 0:00:26]} 42. Kg2 {[%emt 0:00:01]} Qd5+ {[%emt 0:00:09]} 43. Kg1 {[%emt 0:00:01]} gxh5 {[%emt 0:00:50]} 44. Be7 {[%emt 0:01:32]} c3 {[%emt 0:00:29]} 45. Qb4 {[%emt 0:00:01]} Qe5 {[%emt 0:00:35]} 46. Bd6 {[%emt 0:00:23]} Qd5 {[%emt 0:00:31]} 47. Qb8+ {[%emt 0:00:20]} Kg7 {[%emt 0:00:05]} 48. Be5+ {[%emt 0:00:04]} f6 {[%emt 0:00:13]} ({Black should play} 48... Kg6 $1 $19 49. Bxc3 Ng5 50. Qb6+ Qe6) 49. Bxc3 $17 {[%emt 0:00:19]} Ng5 {[%emt 0:01:06]} (49... Qc6 $17 50. Qa7+ Kg6) 50. Qa7+ $15 {[%emt 0:00:18]} Kg6 {[%emt 0:00:04]} (50... Qf7 {simplifies} 51. Qxa6 h4 52. gxh4 Nf3+) 51. Qxa6 {[%emt 0:00:08]} Qf3 {[%emt 0:00:51]} 52. Qc8 {[%emt 0:01:17]} Qd5 {[%emt 0:00:25]} 53. Qe8+ {[%emt 0:00:08]} Qf7 {[%emt 0:00:37]} 54. Qc6 {[%emt 0:00:44]} (54. Qxf7+ {simplifies} Nxf7 55. Kg2 Nd6 56. Kh3) 54... Qe7 {[%emt 0:00:22]} (54... Qe6 {simplifies} 55. Qxe6 Nxe6 56. Kh2 Nc5) 55. Qd5 {[%emt 0:01:01]} Qe6 {[%emt 0:00:30]} (55... Qe4 {keeps more tension.} 56. Qg8+ Kf5 57. Qc8+ Qe6) 56. Qxe6 {[%emt 0:00:14]} Nxe6 {[%emt 0:00:05]} 57. Kg2 {[%emt 0:00:07]} Ng5 {[%emt 0:00:33]} 58. f3 {[%emt 0:00:27]} Kf5 {[%emt 0:00:40]} 59. g4+ {[%emt 0:00:42]} Ke6 {[%emt 0:00:46]} 60. gxh5 {[%emt 0:01:10]} Kf5 {[%emt 0:00:10]} 61. Kg3 {[%emt 0:00:04]} Ne6 {[%emt 0:00:35]} 62. Bd2 {[%emt 0:00:30]} Nd4 {[%emt 0:00:16]} 63. Be3 {[%emt 0:00:19]} Ne2+ {[%emt 0:00:12]} 64. Kh4 {[%emt 0:00:08]} Nf4 {[%emt 0:00:18]} 65. Bd2 {[%emt 0:00:05]} Ne6 {[%emt 0:00:29]} 66. Be3 $1 {[%emt 0:00:07]} Nd8 {[%emt 0:00:20]} 67. Bd2 {[%emt 0:00:35]} Ne6 {[%emt 0:00:27]} 68. Be3 {[%emt 0:00:05]} Ke5 {[%emt 0:00:35]} 69. Kg3 {[%emt 0:01:52]} f5 {[%emt 0:01:46]} 70. Bb6 {[%emt 0:00:44]} Kd5 {[%emt 0:00:23]} 71. Kf2 {[%emt 0:00:46]} Nf4 {[%emt 0:00:27]} 72. Kg3 {[%emt 0:00:11]} Ne6 {[%emt 0:00:30]} 73. Kf2 {[%emt 0:00:02]} Kc6 {[%emt 0:00:17]} 74. Ba7 {[%emt 0:00:42]} Kd5 {[%emt 0:01:33]} (74... Kb7 $5 75. Be3 $8 Kc7 $11) 75. Bb6 {[%emt 0:02:53]} f4 {[%emt 0:00:30]} 76. Ke2 {[%emt 0:00:30]} Ke5 {[%emt 0:00:30]} 77. Kd3 {[%emt 0:00:30]} Ng7 $2 {[%emt 0:00:30][%mdl 8192]} (77... Kf5 $11) 78. h6 $2 {[%emt 0:00:30]} (78. Bd4+ Kf5 79. Bxg7 Kg5 80. Ke4 Kxh5 81. Kf5 (81. Kxf4 Kg6 82. Bc3 h6 83. Ke5 h5 84. Be1 h4 85. Bxh4 Kh5) 81... Kh4 82. Kxf4 Kh3 83. Bf6) 78... Ne6 $1 $17 {[%emt 0:00:30]} 79. Ba7 {[%emt 0:00:30]} Ng5 {[%emt 0:00:30]} 80. Bd4+ $2 {[%emt 0:00:30][%mdl 8192]} (80. Bb8+ $17 Kf5 81. Ke2) 80... Kf5 $2 (80... Kd5 $1 $19 {and Black stays clearly on top.} 81. Bb6 Nxf3) 81. Ke2 $17 {[%emt 0:00:30] [#]} Nf7 $1 {[%emt 0:01:00]} 82. Bg7 Kg5 83. Kd3 {[%emt 0:01:00]} (83. Kf1 $1 $11 {keeps the balance.}) 83... Nxh6 $17 {[%emt 0:01:00]} 84. Bxh6+ $2 {[%mdl 8192]} (84. Bc3 $17) 84... Kxh6 85. Ke2 Kg5 {[%emt 0:01:00]} 86. Kf2 {[%emt 0:01:30]} Kf5 {[%emt 0:00:30]} 87. Kg2 Ke5 88. Kh3 {[#]} Kd6 $2 {[%emt 0:01:00]} (88... Kd4 $1 {mates} 89. Kh4 Ke3 90. Kg4 h6 (90... h5+ {leads to mate.} 91. Kh4 Kxf3 92. Kxh5 Ke3 93. Kh6 f3 94. Kg7 f2 95. Kf6 Kd4 96. Kf5 f1=Q+ 97. Ke6 Qf8 98. Kd7 Qf6 99. Kc8 Qe7 100. Kb8 Kc5 101. Kc8 Kc6 102. Kb8 Qb7#) 91. Kh4 Kxf3 92. Kh3 Ke3 93. Kg4 f3 94. Kf5 Kd4 (94... f2 {gets mated.} 95. Kf6 f1=Q+ 96. Ke7 Qb5 97. Ke6 Qc6+ 98. Kf7 Kf4 99. Kg7 Kg5 100. Kh7 Qc7+ 101. Kg8 Kg6 102. Kh8 Qh7#) 95. Kf6 f2 96. Kf5 f1=Q+ (96... f1=R+ 97. Ke6 h5 98. Kd7 h4 99. Kc7 h3 100. Kd8 h2 101. Ke8 h1=R 102. Ke7 Rh7+ 103. Ke6 Rg7 104. Kd6 Rf6#) 97. Ke6 Qf4 98. Kd7 Kd5 99. Ke7 Qf2 100. Kd7 Qa7+ 101. Ke8 Ke6 102. Kf8 Qf7#) 89. Kg2 $2 {[%emt 0:01:30][%mdl 8192]} (89. Kg4 $11) 1-0

[Event "Baku Open 2024"]
[Site "Baku"]
[Date "2024.07.03"]
[Round "5.26"]
[White "Davidov, Samir"]
[Black "Ahmad, Khagan"]
[Result "1/2-1/2"]
[ECO "D04"]
[WhiteElo "2244"]
[BlackElo "2401"]
[Annotator "TA"]
[PlyCount "159"]
[EventDate "2024.06.29"]
[EventType "swiss"]
[EventCountry "AZE"]
[SourceTitle "playchess.com"]
[Source "ChessBase"]
[SourceQuality "1"]
[TimeControl "5400+30"]

{[%evp 36,159,-7,-16,-5,-5,0,-13,0,0,0,0,24,25,33,26,21,14,26,12,25,10,19,19,6,8,8,8,8,8,8,8,18,22,11,12,68,51,60,67,49,49,49,50,50,50,59,29,65,0,0,0,46,0,0,0,45,0,0,0,0,-4,-8,-8,-11,-125,-111,-168,0,0,0,0,0,0,0,0,0,0,0,0,0,0,0,0,0,0,0,0,0,0,0,0,20,8,9,8,8,8,8,8,8,8,8,0,0,0,0,0,0,0,0,0,0,0,0,0,0,0,0,0,0,0,0,0,0,0]} 1. d4 {[%emt 0:00:13]} Nf6 {[%emt 0:05:19]} 2. Nf3 {[%emt 0:01:07]} d5 {[%emt 0:00:54]} 3. e3 {[%emt 0:00:49]} c5 {[%emt 0:00:13]} 4. b3 {[%emt 0:00:16]} cxd4 {[%emt 0:00:25]} 5. exd4 {[%emt 0:00:06]} Nc6 {[%emt 0:00:34]} 6. Bb2 {[%emt 0:01:13]} Bg4 {[%emt 0:04:27]} 7. Be2 {[%emt 0:01:20]} g6 {[%emt 0:02:35] D04: Colle System.} 8. Ne5 {[%emt 0:02:06]} Bxe2 {[%emt 0:01:25]} 9. Qxe2 {[%emt 0:00:04]} Bg7 {[%emt 0:01:39]} 10. O-O {[%emt 0:01:05]} O-O {[%emt 0:00:31]} 11. Nd2 {[%emt 0:01:27]} Rc8 {[%emt 0:02:02]} 12. c4 {[%emt 0:02:52]} e6 {[%emt 0:01:44]} 13. Rac1 {[%emt 0:02:16]} dxc4 {[%emt 0:04:28]} 14. Nxc6 {[%emt 0:00:23]} Rxc6 {[%emt 0:00:06]} 15. bxc4 {[%emt 0:02:29]} Qa5 {[%emt 0:02:49]} 16. Nb3 $146 {[%emt 0:05:53]} ({Predecessor:} 16. Rc2 Rfc8 17. Ba1 Qf5 18. Rfc1 Bh6 19. c5 Nd5 20. a3 Ra6 21. Bb2 Nf4 22. Qf3 {½-½ Alekseenko,M (1888)-Volkov,S (2541) Khanty-Mansiysk Governor Cup 17th 2021 (3)}) 16... Qc7 {[%emt 0:01:26]} 17. d5 {[%emt 0:09:05]} exd5 {[%emt 0:00:33]} 18. Bxf6 {[%emt 0:00:04]} Bxf6 {[%emt 0:00:36]} 19. cxd5 {[%emt 0:00:03]} Rxc1 {[%emt 0:00:10]} 20. Rxc1 {[%emt 0:00:02]} Qd7 {[%emt 0:01:58]} 21. Qf3 {[%emt 0:04:37]} Be7 {[%emt 0:00:50]} 22. Rd1 {[%emt 0:01:56]} Bd6 {[%emt 0:00:45]} 23. Nd2 {[%emt 0:00:17]} f5 {[%emt 0:00:53]} 24. Nc4 {[%emt 0:09:39]} Re8 {[%emt 0:00:40]} 25. Nxd6 {[%emt 0:10:52]} Qxd6 {[%emt 0:00:13]} 26. h4 {[%emt 0:00:18]} h5 {[%emt 0:04:20]} 27. Qb3 {[%emt 0:02:05]} Re7 {[%emt 0:05:52]} 28. Rc1 {[%emt 0:05:54]} Kf7 {[%emt 0:00:17]} 29. g3 {[%emt 0:00:18]} Rd7 {[%emt 0:07:41]} 30. Rd1 {[%emt 0:03:32]} f4 {[%emt 0:04:03]} 31. Qf3 {[%emt 0:02:22]} Qf6 {[%emt 0:02:33]} 32. Qxf4 {[%emt 0:01:29]} Qxf4 33. gxf4 Ke7 {[%emt 0:00:49]} 34. Kg2 {[%emt 0:01:19]} Kd6 {[%emt 0:00:21]} 35. Kf3 {[%emt 0:00:05]} Rc7 {[%emt 0:00:27]} 36. Rg1 $1 {[%emt 0:02:35]} Rc3+ {[%emt 0:02:15]} 37. Ke4 {[%emt 0:00:06]} Rc4+ {[%emt 0:00:01]} 38. Ke3 {[%emt 0:00:05]} Ra4 {[%emt 0:00:04]} 39. Rxg6+ {[%emt 0:00:32]} Kxd5 {[%emt 0:00:02]} 40. Rg5+ {[%emt 0:00:09]} Ke6 {[%emt 0:00:36]} 41. Rb5 {[%emt 0:01:34]} b6 {[%emt 0:00:57]} 42. Rb2 {[%emt 0:01:26]} (42. Rxh5 $14 Ra3+ 43. Ke4) 42... Kf5 $11 {[%emt 0:43:57]} 43. Rb5+ {[%emt 0:00:24]} Kg6 {[%emt 0:00:00]} (43... Ke6 $11) 44. Rb2 {[%emt 0:00:06]} (44. Rg5+ $14 {feels stronger.} Kh6 45. f5) 44... Kf5 $11 {[%emt 0:00:00]} 45. Rb5+ {[%emt 0:00:06]} Kf6 {[%emt 0:00:00]} 46. Rb2 {[%emt 0:00:06]} Ra5 {[%emt 0:00:00]} 47. Ke4 {[%emt 0:00:09]} b5 {[%emt 0:00:00]} 48. a3 {[%emt 0:17:01]} a6 {[%emt 0:00:00]} 49. Rb3 {[%emt 0:00:03]} Ra4+ {[%emt 0:00:00]} 50. Ke3 {[%emt 0:00:16]} (50. Kf3 $11) 50... Kf5 $17 {[%emt 0:00:00]} 51. f3 {[%emt 0:00:07]} (51. Rc3 $17 {keeps fighting.}) 51... Kf6 $2 {[%emt 0:00:00]} ({Black should play} 51... Rxf4 $19 52. Rd3 (52. Rb4 Rc4 $11) 52... Rxh4 53. Rd5+ Ke6) 52. Rc3 {[%emt 0:01:27]} Ke6 {[%emt 0:00:00]} 53. Rd3 {[%emt 0:02:52]} Rc4 {[%emt 0:00:00]} 54. f5+ {[%emt 0:01:35]} Kxf5 {[%emt 0:00:00]} 55. Rd5+ {[%emt 0:00:06]} Ke6 {[%emt 0:00:00]} 56. Rxh5 {[%emt 0:00:07]} Ra4 {[%emt 0:00:00]} 57. Rh8 {[%emt 0:00:14]} a5 {[%emt 0:00:00]} 58. Rb8 {[%emt 0:02:07]} Rxa3+ {[%emt 0:00:00]} (58... Rxh4 59. Rb6+ (59. Rxb5 Ra4 $14) 59... Kf7 60. Rxb5 $14) 59. Kf4 {[%emt 0:00:05]} b4 {[%emt 0:00:00]} 60. h5 {[%emt 0:00:10]} Ra1 {[%emt 0:00:00]} 61. Rb5 {[%emt 0:00:47]} (61. h6 $5 Rh1 $8 62. Kg4 $11) 61... Kf6 {[%emt 0:00:00]} 62. Kg4 {[%emt 0:02:34]} Ra3 {[%emt 0:00:00]} 63. Rb6+ {[%emt 0:00:16]} Ke5 {[%emt 0:00:00]} 64. h6 {[%emt 0:02:41]} Ra1 {[%emt 0:01:09]} 65. Rb5+ {[%emt 0:00:04]} (65. h7 $5 Rh1 $8 66. Rb5+ Kf6 67. Rxa5 $11) 65... Kf6 $1 {[%emt 0:00:59]} 66. Rh5 {[%emt 0:02:37]} Rg1+ {[%emt 0:00:42]} 67. Kf4 {[%emt 0:00:03]} Rg8 $1 {[%emt 0:00:07]} 68. Rxa5 {[%emt 0:00:03]} Rb8 {[%emt 0:00:08]} 69. Ra6+ {[%emt 0:00:06]} Kf7 {[%emt 0:00:01]} 70. Ra7+ {[%emt 0:00:10]} Kg8 {[%emt 0:00:16]} 71. Ra2 {[%emt 0:00:18]} Kh7 {[%emt 0:00:07]} 72. Rh2 {[%emt 0:00:09]} b3 {[%emt 0:00:11]} 73. Rb2 {[%emt 0:00:05]} Kxh6 {[%emt 0:00:07]} 74. Ke5 {[%emt 0:00:18]} Kg6 {[%emt 0:00:10]} 75. Rg2+ {[%emt 0:00:09]} Kh5 {[%emt 0:00:14]} 76. Rb2 {[%emt 0:00:03]} Kh4 {[%emt 0:00:08]} 77. f4 {[%emt 0:00:16]} Kg4 {[%emt 0:00:01]} 78. f5 {[%emt 0:00:04]} Rb5+ {[%emt 0:00:11]} 79. Ke6 {[%emt 0:00:06]} Rxf5 {[%emt 0:00:09]} 80. Rxb3 {[%emt 0:00:04]} 1/2-1/2

[Event "Baku Open 2024"]
[Site "Baku"]
[Date "2024.07.03"]
[Round "5.27"]
[White "Guliev, Sarhan"]
[Black "Fataliyeva, Ulviyya"]
[Result "1/2-1/2"]
[ECO "C89"]
[WhiteElo "2224"]
[BlackElo "2399"]
[Annotator "TA"]
[PlyCount "104"]
[EventDate "2024.06.29"]
[EventType "swiss"]
[EventCountry "AZE"]
[SourceTitle "playchess.com"]
[Source "ChessBase"]
[SourceQuality "1"]
[TimeControl "5400+30"]

{[%evp 24,104,0,-10,62,0,27,28,39,18,31,18,22,0,0,16,64,33,47,41,41,29,37,38,27,0,0,0,0,0,0,0,0,0,0,0,0,0,0,0,0,0,0,0,0,0,0,0,0,0,0,0,0,0,0,0,0,0,0,-8,0,0,0,0,0,0,0,0,0,0,0,0,0,0,0,0,0,0,0,0,12,0,19]} 1. e4 {[%emt 0:07:15]} e5 {[%emt 0:00:03]} 2. Nf3 {[%emt 0:00:28]} Nc6 {[%emt 0:00:04]} 3. Bb5 {[%emt 0:00:08]} a6 {[%emt 0:00:04]} 4. Ba4 {[%emt 0:00:07]} Nf6 {[%emt 0:00:05]} 5. O-O {[%emt 0:00:14]} Be7 {[%emt 0:00:06]} 6. Re1 {[%emt 0:00:06]} b5 {[%emt 0:00:05]} 7. Bb3 {[%emt 0:00:07]} O-O {[%emt 0:00:06]} 8. c3 {[%emt 0:00:06]} d5 {[%emt 0:00:04]} 9. exd5 {[%emt 0:00:37]} Nxd5 {[%emt 0:00:04]} 10. a4 {[%emt 0:02:13]} Bb7 {[%emt 0:03:38]} 11. axb5 {[%emt 0:02:06]} axb5 {[%emt 0:00:11]} 12. Rxa8 {[%emt 0:00:07]} Bxa8 {[%emt 0:00:04]} 13. d3 {[%emt 0:01:55][%cal Od1c2]} Bc5 {[%emt 0:04:48]} (13... Bf6 $11) 14. Ng5 {[%emt 0:12:11]} (14. Nxe5 Bxf2+ 15. Kxf2 Nxe5 $15) (14. Nbd2 $14) 14... Be7 {[%emt 0:08:36]} 15. Qh5 {[%emt 0:05:38][%csl Gg5][%cal Rh5h7] [#]} Bxg5 {[%emt 0:07:19] White has an edge.} 16. Bxg5 {[%emt 0:00:24]} Qd7 {[%emt 0:00:33]} 17. Nd2 {[%emt 0:12:12]} Na5 {[%emt 0:02:17]} 18. Bc2 {[%emt 0:04:35]} (18. Rxe5 $2 Nxb3 19. Nxb3 f6 $19) (18. Ba2 {is interesting.} f6 19. b4 Nb7 20. Qh3) 18... f6 {[%emt 0:07:11]} 19. Be3 {[%emt 0:00:48]} f5 {[%emt 0:01:52]} (19... Nxe3 $11 20. Rxe3 c5) 20. Nf3 {[%emt 0:02:32]} Nf6 {[%emt 0:13:18]} 21. Qh3 {[%emt 0:02:18]} ({Wrong is} 21. Nxe5 $2 Qd5 22. Qg5 Qxe5 $19) 21... e4 {[%emt 0:05:12]} 22. dxe4 {[%emt 0:05:08]} Bxe4 {[%emt 0:00:18]} 23. Bxe4 {[%emt 0:02:46]} Nxe4 {[%emt 0:00:23]} 24. Bd4 {[%emt 0:01:54] [#] aiming for Rxe4.} Qd5 {[%emt 0:01:27] The position is equal.} 25. Nd2 {[%emt 0:05:20]} c5 {[%emt 0:04:14]} (25... Nxd2 $5 26. Re7 $8 Rf7 27. Re8+ Rf8 $11) 26. Nxe4 {[%emt 0:07:26]} cxd4 {[%emt 0:01:47]} (26... fxe4 $5 27. Be3 $8 Nb3 $15) 27. Nd2 {[%emt 0:05:43]} (27. Ng5 $5 h6 $8 28. Qf3 $15 (28. Ne6 $2 Re8 $19)) 27... d3 {[%emt 0:01:21] Threatens to win with ...Nc4.} 28. Re3 {[%emt 0:03:35]} Rd8 {[%emt 0:00:30]} 29. Qh5 {[%emt 0:01:08] White wants to mate with Re8+.} g6 {[%emt 0:02:59]} 30. Qh4 {[%emt 0:00:47]} Nc6 {[%emt 0:08:30] Prevents Re7.} ({Don't go for} 30... Nc4 $2 31. Re7 $18) 31. Qf6 {[%emt 0:03:05]} Rf8 {[%emt 0:00:49]} 32. Qe6+ {[%emt 0:01:24]} Qxe6 {[%emt 0:00:05]} 33. Rxe6 $11 {[%emt 0:00:06][%mdl 4096] Endgame. KRN-KRN} Rc8 {[%emt 0:00:03]} 34. Rd6 {[%emt 0:01:12]} Ne5 {[%emt 0:00:07]} 35. g3 {[%emt 0:05:07]} Ra8 {[%emt 0:05:58]} 36. Kg2 {[%emt 0:04:24]} Ra2 {[%emt 0:02:19]} 37. Rd5 {[%emt 0:01:26]} Nc4 {[%emt 0:02:15]} 38. Rxd3 {[%emt 0:00:09]} Nxb2 {[%emt 0:00:04]} 39. Rd8+ {[%emt 0:01:05]} Kf7 {[%emt 0:01:01]} 40. Nf3 {[%emt 0:01:58] Strongly threatening Rd2.} Na4 {[%emt 0:00:14]} 41. Rd7+ {[%emt 0:00:27]} Kf6 {[%emt 0:03:14]} 42. Rc7 {[%emt 0:00:26]} Ra3 {[%emt 0:00:26]} 43. Rc6+ {[%emt 0:00:40]} Ke7 {[%emt 0:00:13]} 44. Nd4 {[%emt 0:00:30]} Nxc3 {[%emt 0:03:05]} 45. Rc7+ {[%emt 0:00:06]} Kf6 {[%emt 0:01:48]} 46. Nc2 {[%emt 0:01:00]} Rb3 {[%emt 0:00:05]} 47. Nd4 $1 {[%emt 0:00:07]} Rb4 {[%emt 0:00:54]} 48. Rc6+ {[%emt 0:00:26]} Kf7 {[%emt 0:00:31]} 49. Rc7+ {[%emt 0:00:13]} Ke8 {[%emt 0:03:52] ...Nd5 would now be deadly.} 50. Nxf5 {[%emt 0:01:07]} gxf5 {[%emt 0:02:05]} 51. Rxc3 {[%emt 0:00:02]} Kf7 {[%emt 0:00:09]} 52. Kf3 {[%emt 0:00:34]} Rb2 {[%emt 0:00:13] Weighted Error Value: White=0.05 (flawless) /Black=0.07 (flawless) .  Mistake:       	White=1     	Black=1      Inaccurate:     	White=2     	Black=1      OK:         	White=22    	Black=12     Best:        	White=1     	Black=2      Strong:       	White=1     	---} 1/2-1/2